bitfinex/quotes_ETHUSD_20250213
["timestamp","ask_amount","ask_price","bid_price","bid_amount"]
[1739444795832,0.05663656,2678.6,2678.5,3.73343]
[1739444797836,0.05663656,2678.6,2678.5,7.34998313]
[1739444798159,0.7665,2679.0,2678.8,3.73293]
[1739444798531,0.05487614,2678.9,2678.8,3.73293]
[1739444802750,0.05487614,2678.9,2678.7,3.73315]
[1739444802936,0.05487614,2678.9,2678.8,3.73301]
[1739444803338,0.05487614,2678.9,2678.8,4.55579079]
[1739444804766,0.05487614,2678.9,2678.8,7.42565292]
[1739444804923,0.8029,2679.3,2679.2,3.73245]
[1739444806351,0.768,2679.5,2679.2,3.73245]
[1739444806847,0.768,2679.5,2679.1,3.73252]
[1739444807417,0.768,2679.5,2679.2,3.73243]
[1739444809307,0.768,2679.5,2679.2,3.73245]
[1739444809507,5.28,2679.6,2679.1,3.24311413]
[1739444809755,6.3271,2679.7,2679.2,3.73245]
[1739444809912,6.3271,2679.7,2679.3,3.73231]
[1739444810455,10.05892,2679.7,2679.1,7.24029413]
[1739444810753,10.05892,2679.7,2679.1,6.60244213]
[1739444810917,3.73204,2679.5,2679.0,3.73272]
[1739444811319,10.05895,2679.7,2679.1,3.73249]
[1739444811565,0.05289478,2679.4,2679.1,3.73249]
[1739444811716,3.73199,2679.6,2679.1,3.73249]
[1739444811915,0.05289478,2679.3,2679.1,3.73249]
[1739444812171,3.73199,2679.6,2679.1,3.73249]
[1739444812484,0.7568,2679.1,2678.8,6.60279213]
[1739444812824,0.05294899,2679.0,2678.7,3.73304]
[1739444813123,0.05294899,2679.0,2678.8,3.73298]
[1739444813635,0.05294899,2679.0,2678.7,7.46613]
[1739444813784,0.05294899,2679.0,2678.8,3.73292]
[1739444814174,0.05294899,2679.0,2678.7,3.73304]
[1739444814411,0.05294899,2679.0,2678.5,7.63611818]
[1739444814631,0.05294899,2679.0,2678.8,3.73291]
[1739444814932,0.05294899,2679.0,2678.8,3.733]
[1739444815490,0.05294899,2679.0,2678.7,7.46622]
[1739444815699,0.05294899,2679.0,2678.8,3.73299]
[1739444816225,0.05294899,2679.0,2678.9,3.73287]
[1739444816716,5.28,2679.3,2678.9,3.73287]
[1739444816907,0.05282703,2679.2,2679.0,3.73273]
[1739444817076,5.28,2679.3,2679.0,3.73273]
[1739444817277,0.05282703,2679.2,2679.0,3.73273]
[1739444817623,5.28,2679.3,2679.0,3.73273]
[1739444817798,0.05284056,2679.1,2678.9,3.73287]
[1739444817994,5.28,2679.3,2678.9,3.73287]
[1739444818193,0.05273215,2679.0,2678.9,3.73287]
[1739444818823,5.28,2679.3,2678.9,3.73287]
[1739444819328,0.05273215,2679.2,2678.9,3.73287]
[1739444820425,3.78526572,2679.2,2678.6,3.73322]
[1739444820628,3.7328,2679.0,2678.5,6.73334]
[1739444820793,3.7328,2679.0,2678.5,10.4667]
[1739444821187,0.0526644,2678.9,2678.5,10.4667]
[1739444821388,0.0526644,2678.9,2678.5,6.73334]
[1739444821619,0.0526644,2678.9,2678.5,10.46668]
[1739444821927,0.0526644,2678.9,2678.5,6.73334]
[1739444822087,0.7814,2678.8,2678.3,3.73362]
[1739444822423,0.0526147,2678.7,2678.3,3.73362]
[1739444822923,4.51452,2678.8,2678.4,3.73352]
[1739444822924,0.0526147,2678.6,2678.4,3.73352]
[1739444823383,4.51443,2678.8,2678.4,3.73356]
[1739444823723,4.51443,2678.8,2678.4,3.73357]
[1739444823937,0.05258759,2678.7,2678.2,2.86986213]
[1739444824095,0.05258759,2678.7,2678.6,3.73329]
[1739444824298,5.28,2678.9,2678.8,3.73301]
[1739444824517,5.33231647,2678.9,2678.7,3.73313]
[1739444824683,5.33231647,2678.9,2678.7,3.73307]
[1739444825028,5.33231647,2678.9,2678.8,3.73301]
[1739444825926,0.05231647,2678.9,2678.8,3.73301]
[1739444826132,0.05231647,2678.9,2678.8,4.479618]
[1739444826347,5.28,2679.1,2678.9,3.73286]
[1739444826741,5.28,2679.1,2679.0,3.73273]
[1739444827737,5.28,2679.1,2678.9,3.73286]
[1739444828056,5.28,2679.1,2678.5,6.60327213]
[1739444828057,5.28,2679.1,2678.8,3.73301]
[1739444828257,5.28,2679.1,2678.6,3.73324]
[1739444828465,0.7735,2679.0,2678.6,3.73324]
[1739444828617,0.7735,2679.0,2678.6,3.73321]
[1739444829130,0.7735,2679.0,2678.6,7.46641]
[1739444829308,0.7735,2679.0,2678.7,3.73314]
[1739444829822,0.7735,2679.0,2678.7,7.46621]
[1739444830028,0.7735,2679.0,2678.8,3.73299]
[1739444830615,5.28,2679.1,2679.0,3.73273]
[1739444831233,5.28,2679.1,2678.9,7.46565]
[1739444831539,5.28,2679.1,2679.0,3.73273]
[1739444831922,5.55,2679.3,2679.2,3.73245]
[1739444832126,5.28,2679.3,2679.2,3.73245]
[1739444833388,5.28,2679.3,2678.8,3.13446213]
[1739444833550,5.28,2679.3,2679.0,3.73269]
[1739444833886,5.28,2679.3,2679.1,3.73259]
[1739444834730,5.28,2679.3,2679.2,3.73245]
[1739444835170,5.28,2679.4,2679.2,3.73245]
[1739444835365,5.28,2679.4,2679.3,3.73231]
[1739444835691,5.28,2679.5,2679.2,3.73245]
[1739444837391,5.28,2679.5,2679.2,3.73239]
[1739444838539,5.28,2679.5,2679.0,3.73262]
[1739444838745,0.7595,2679.3,2678.9,3.73282]
[1739444838945,3.73252,2679.2,2678.7,3.73306]
[1739444839295,9.01252,2679.2,2678.7,3.73306]
[1739444839455,5.28,2679.2,2678.8,3.73295]
[1739444839659,9.01254,2679.2,2678.7,3.7331]
[1739444839972,5.28,2679.2,2678.9,3.73287]
[1739444840293,5.28,2679.2,2679.0,3.73261]
[1739444840459,5.28,2679.2,2678.9,4.744051]
[1739444840643,5.28,2679.2,2679.0,3.73273]
[1739444840841,5.28,2679.2,2679.1,3.73259]
[1739444841688,5.332916,2679.2,2679.0,3.73273]
[1739444842192,5.332916,2679.2,2679.1,3.73259]
[1739444843764,5.332916,2679.2,2679.1,6.60245213]
[1739444843765,0.052916,2679.2,2679.1,6.60245213]
[1739444843937,5.28,2679.4,2679.3,3.73231]
[1739444844137,5.28,2679.6,2679.3,7.46456]
[1739444844387,5.28,2679.6,2679.3,3.73225]
[1739444844637,5.28,2679.6,2679.3,3.73224]
[1739444844869,5.28,2679.6,2679.5,3.73203]
[1739444845376,5.28,2679.6,2679.4,3.7321]
[1739444845939,5.28,2679.6,2679.5,3.73203]
[1739444846290,5.28,2679.6,2679.3,1.03345921]
[1739444846587,5.28,2679.6,2679.4,3.73217]
[1739444847179,5.28,2679.6,2679.5,3.73203]
[1739444848201,5.28,2679.6,2679.4,3.73217]
[1739444848340,5.28,2679.6,2679.1,2.86986213]
[1739444848341,5.28,2679.6,2679.3,3.73231]
[1739444849642,6.0481,2679.7,2679.3,3.73231]
[1739444850208,6.0481,2679.7,2679.4,3.73207]
[1739444851197,6.0481,2679.7,2679.3,7.46454]
[1739444851403,6.0481,2679.7,2679.3,8.57128361]
[1739444851694,6.0481,2679.7,2679.3,4.83905361]
[1739444852991,6.0481,2679.7,2679.4,3.73217]
[1739444854098,6.0481,2679.7,2679.4,3.7321]
[1739444854547,6.0481,2679.7,2679.5,3.73192]
[1739444855801,5.28,2679.7,2679.5,3.73192]
[1739444855944,5.28,2679.7,2679.6,3.7319]
[1739444856592,5.32671009,2679.7,2679.6,3.7319]
[1739444860133,0.04671009,2679.7,2679.6,6.7319]
[1739444860426,6.1053,2680.2,2679.8,3.73151]
[1739444860722,6.1053,2680.2,2679.9,3.73141]
[1739444862081,6.1053,2680.2,2679.6,3.0]
[1739444862381,0.7895,2679.9,2679.6,3.73189]
[1739444862723,4.52109,2679.9,2679.4,2.86986213]
[1739444862925,4.52109,2679.9,2679.5,3.73191]
[1739444862926,0.7895,2679.9,2679.5,3.73191]
[1739444863130,0.7895,2679.9,2679.6,3.73189]
[1739444863919,0.7895,2679.9,2679.5,3.73191]
[1739444864653,6.0695,2679.9,2679.7,3.73164]
[1739444864815,6.0695,2679.9,2679.8,3.73162]
[1739444865155,5.28,2679.9,2679.8,3.73162]
[1739444865293,5.28,2679.9,2679.7,3.73164]
[1739444865498,5.28,2679.9,2679.6,3.73189]
[1739444865731,5.28,2679.9,2679.5,3.99655]
[1739444865732,5.28,2679.9,2679.7,3.73173]
[1739444866699,5.28,2679.9,2679.7,7.46341]
[1739444867602,5.28,2679.9,2679.8,3.73162]
[1739444868203,5.28,2679.9,2679.7,3.73174]
[1739444870264,5.28,2679.9,2679.8,3.73162]
[1739444870461,6.0625,2680.1,2679.8,3.73162]
[1739444870761,6.0625,2680.1,2679.7,3.73175]
[1739444870934,6.0625,2680.1,2679.7,3.73167]
[1739444871720,0.04707135,2680.0,2679.7,3.73167]
[1739444872421,3.77848135,2680.0,2679.5,3.0]
[1739444872787,3.77848135,2680.0,2679.6,3.73189]
[1739444873122,0.04707135,2680.0,2679.7,3.73172]
[1739444873551,0.04707135,2680.0,2679.4,2.86986213]
[1739444873751,0.04707135,2680.0,2679.9,3.73148]
[1739444873917,0.04707135,2680.0,2679.6,3.99638]
[1739444874116,0.04707135,2680.0,2679.7,3.73169]
[1739444875121,0.04707135,2680.0,2679.6,3.99638]
[1739444875473,0.04707135,2680.0,2679.6,7.72819]
[1739444876072,0.04707135,2680.0,2679.7,3.73175]
[1739444878169,0.04707135,2680.0,2679.6,3.73183]
[1739444878517,0.04707135,2680.0,2679.7,3.73175]
[1739444879461,0.04707135,2680.0,2679.5,3.28698621]
[1739444879632,0.04707135,2680.0,2679.6,3.73181]
[1739444879836,3.77844135,2680.0,2679.6,3.73181]
[1739444880421,0.04707135,2680.0,2679.6,3.73181]
[1739444880746,0.8126,2679.8,2679.2,0.2646]
[1739444881075,6.0926,2679.8,2679.6,3.73178]
[1739444881252,0.04537848,2679.7,2679.6,3.73178]
[1739444881416,6.0926,2679.8,2679.5,3.73202]
[1739444881772,6.0926,2679.8,2679.7,3.73176]
[1739444881926,5.28,2679.8,2679.7,3.73176]
[1739444882121,5.28,2679.8,2679.6,3.73187]
[1739444882648,5.28,2679.8,2679.6,3.7318]
[1739444883028,5.28,2679.8,2679.5,3.73196]
[1739444883326,5.28,2679.8,2679.5,4.478364]
[1739444883662,0.7963,2679.7,2679.4,3.73208]
[1739444884730,0.7963,2679.7,2679.5,3.73194]
[1739444885272,0.7963,2679.7,2679.3,3.73217]
[1739444885436,0.7963,2679.7,2679.5,3.73203]
[1739444886463,0.7963,2679.7,2679.5,3.73194]
[1739444886883,0.04530622,2679.6,2679.5,3.73194]
[1739444889272,0.04530622,2679.6,2679.4,3.7321]
[1739444889580,0.04530622,2679.6,2679.2,3.99694]
[1739444889785,0.04530622,2679.6,2679.2,3.73234]
[1739444889930,0.04530622,2679.6,2679.2,3.73235]
[1739444890124,5.32530622,2679.6,2679.1,3.73259]
[1739444890376,0.7832,2679.5,2679.1,3.73259]
[1739444890730,0.04524753,2679.4,2679.1,3.73252]
[1739444890927,0.04524753,2679.4,2679.1,4.58216192]
[1739444891402,0.04524753,2679.4,2679.3,3.73231]
[1739444892698,5.28,2679.6,2679.3,3.73231]
[1739444892879,0.04511206,2679.4,2679.3,3.73231]
[1739444893078,5.28,2679.6,2679.3,3.73231]
[1739444893286,5.28,2679.6,2679.5,3.73203]
[1739444893579,5.28,2679.6,2679.4,3.73216]
[1739444894475,6.0538,2679.7,2679.4,3.73216]
[1739444895307,5.28,2679.7,2679.6,3.7319]
[1739444896253,0.7735,2680.0,2679.9,3.73148]
[1739444896455,3.73112,2680.2,2679.7,3.99635]
[1739444896703,3.73112,2680.2,2679.7,3.73175]
[1739444896900,3.73112,2680.2,2679.8,3.73158]
[1739444897074,6.3833,2680.3,2679.8,3.73158]
[1739444897405,6.3833,2680.3,2680.0,3.73125]
[1739444898076,6.3833,2680.3,2679.9,3.7314]
[1739444898251,6.3833,2680.3,2680.0,3.73133]
[1739444899399,10.11423,2680.3,2679.8,3.73152]
[1739444899599,3.73108,2680.2,2679.8,3.73152]
[1739444900203,9.01108,2680.2,2679.8,3.73152]
[1739444900507,5.28,2680.2,2679.8,3.73152]
[1739444901015,5.28,2680.2,2680.0,3.73134]
[1739444901826,0.04524301,2680.1,2680.0,3.73134]
[1739444904420,0.04524301,2680.1,2680.0,6.60120213]
[1739444904619,0.04524301,2680.1,2680.0,6.86580213]
[1739444904836,5.28,2680.4,2680.3,3.73092]
[1739444905181,6.1133,2680.4,2680.2,3.73103]
[1739444905679,6.1133,2680.4,2679.9,3.7314]
[1739444905886,6.1133,2680.4,2680.0,3.73127]
[1739444906185,6.1133,2680.4,2680.2,3.73106]
[1739444906383,5.28,2680.4,2680.3,3.73092]
[1739444908944,5.28,2680.4,2680.1,3.73119]
[1739444909246,9.01055,2680.6,2680.2,3.73105]
[1739444912540,5.28,2680.6,2680.2,3.73105]
[1739444912755,5.28,2680.6,2680.3,3.73092]
[1739444913302,5.28,2680.7,2680.5,3.73064]
[1739444913633,5.28,2680.7,2680.6,3.7305]
[1739444916650,0.8275,2681.1,2680.8,3.73015]
[1739444916850,0.8275,2681.1,2680.6,3.73048]
[1739444917036,0.8275,2681.1,2680.7,3.73036]
[1739444917240,0.8275,2681.1,2680.8,3.73014]
[1739444917739,0.8275,2681.1,2680.7,3.73036]
[1739444918835,0.8275,2681.1,2680.6,0.399508]
[1739444919041,3.72996,2681.0,2680.6,0.399508]
[1739444919823,0.8275,2681.1,2680.6,0.399508]
[1739444920147,0.8275,2681.1,2681.0,3.72995]
[1739444920353,0.8275,2681.1,2680.7,0.4130048]
[1739444920354,0.7593,2681.3,2680.8,0.2646]
[1739444920551,3.72906,2681.7,2681.2,3.72959]
[1739444920552,0.7593,2681.6,2681.2,3.72959]
[1739444920848,0.7593,2681.6,2681.0,3.72986]
[1739444920849,4.75848,2681.6,2681.0,3.72986]
[1739444921049,4.75848,2681.6,2681.0,4.41629221]
[1739444921050,8.48771,2681.6,2681.0,4.41629221]
[1739444921347,4.75848,2681.6,2681.0,4.41629221]
[1739444921565,3.72929,2681.5,2681.0,4.41629221]
[1739444921927,3.72971,2681.2,2680.8,0.2646]
[1739444922128,0.7729,2681.1,2680.7,0.4130048]
[1739444922328,5.28,2681.1,2680.6,0.399508]
[1739444922558,4.50286,2681.0,2680.5,3.73061]
[1739444922777,0.7729,2681.0,2680.4,3.73068]
[1739444923163,0.7729,2681.0,2680.6,3.73048]
[1739444923343,0.7729,2681.0,2680.8,3.73012]
[1739444923672,0.7666,2681.5,2681.1,0.2646]
[1739444923972,4.49586,2681.5,2681.0,3.72988]
[1739444924277,0.7666,2681.1,2680.6,3.995]
[1739444924433,0.7666,2681.1,2680.7,3.73027]
[1739444924630,0.7666,2681.1,2680.8,3.73021]
[1739444924837,0.7666,2681.1,2680.6,3.995]
[1739444925146,0.7666,2681.1,2680.6,0.3995]
[1739444925147,3.72995,2681.0,2680.6,0.3995]
[1739444926584,3.73011,2680.9,2680.4,3.73074]
[1739444926882,0.7703,2680.8,2680.4,7.46144]
[1739444927235,0.04629917,2680.7,2680.4,7.46144]
[1739444927428,0.7703,2680.8,2680.4,3.7307]
[1739444927675,0.04629917,2680.7,2680.4,3.7307]
[1739444927883,0.7703,2680.8,2680.4,3.7307]
[1739444928181,0.04629917,2680.6,2680.4,3.7307]
[1739444928376,4.50059,2680.8,2680.3,3.73091]
[1739444928577,0.04629917,2680.5,2680.3,7.46174]
[1739444928878,0.04629917,2680.4,2680.3,7.46168]
[1739444929080,5.28,2680.7,2680.3,7.46168]
[1739444929282,0.04629917,2680.4,2680.3,3.73083]
[1739444929491,5.28,2680.7,2680.4,3.73065]
[1739444929868,5.28,2680.7,2680.5,3.73056]
[1739444930583,5.28,2680.7,2680.4,3.73065]
[1739444930883,5.28,2680.7,2680.4,4.103715]
[1739444931038,5.28,2680.7,2680.4,0.373065]
[1739444931239,9.01037,2680.7,2680.2,3.73098]
[1739444931545,9.01037,2680.7,2680.3,3.73087]
[1739444931546,0.7667,2680.6,2680.3,3.73087]
[1739444931744,0.81303074,2680.6,2680.3,3.73087]
[1739444931962,0.81303074,2680.6,2680.0,2.86986213]
[1739444931963,0.81303074,2680.6,2680.4,3.73077]
[1739444932259,0.04633074,2680.6,2680.5,3.73064]
[1739444932461,0.04633074,2680.6,2680.4,0.373077]
[1739444932758,0.04633074,2680.6,2680.4,3.73069]
[1739444933165,0.04633074,2680.6,2680.5,3.73064]
[1739444935169,5.28,2680.7,2680.6,3.7305]
[1739444935534,5.32630367,2680.7,2680.5,7.46128]
[1739444935775,5.32630367,2680.7,2680.6,3.7305]
[1739444935979,5.32630367,2680.7,2680.6,4.476614]
[1739444936183,5.32630367,2680.7,2680.4,6.73068]
[1739444937143,5.32630367,2680.7,2680.4,3.73068]
[1739444937344,5.32630367,2680.7,2680.3,3.73083]
[1739444937672,5.32630367,2680.7,2680.5,3.73064]
[1739444938381,5.32630367,2680.7,2680.3,3.73083]
[1739444938688,0.8209,2680.6,2680.4,3.73066]
[1739444938983,0.86729392,2680.6,2680.4,3.73078]
[1739444940496,0.86729392,2680.6,2680.5,3.73064]
[1739444940988,0.04639392,2680.6,2680.5,3.73064]
[1739444942346,0.04639392,2680.6,2680.5,4.47678]
[1739444943258,0.80149392,2680.6,2680.3,3.73091]
[1739444943491,0.80149392,2680.6,2680.1,3.73114]
[1739444943660,4.53207392,2680.6,2680.1,3.73114]
[1739444944995,4.53207392,2680.6,2679.9,3.99599]
[1739444945148,3.73071,2680.5,2680.0,3.73132]
[1739444945494,3.77707685,2680.5,2680.0,3.73132]
[1739444945847,3.7308,2680.4,2680.0,3.73132]
[1739444946043,0.8158721,2680.3,2679.8,3.73149]
[1739444946299,0.8158721,2680.3,2679.9,3.73139]
[1739444947791,0.8158721,2680.3,2680.0,3.73126]
[1739444951859,0.8158721,2680.3,2679.9,3.73146]
[1739444952081,4.5468121,2680.3,2679.9,3.73148]
[1739444952587,4.5468121,2680.3,2679.8,3.73151]
[1739444953247,4.5468121,2680.3,2679.8,7.46306]
[1739444953642,4.5468121,2680.3,2679.8,3.73151]
[1739444953950,0.8158721,2680.3,2679.9,3.73141]
[1739444954182,0.8158721,2680.3,2680.0,3.73128]
[1739444955693,0.8158721,2680.3,2680.0,3.73133]
[1739444955893,0.8158721,2680.3,2680.1,3.73113]
[1739444956452,0.8158721,2680.3,2680.0,3.73133]
[1739444957096,0.8158721,2680.3,2680.1,3.73113]
[1739444957401,0.0462721,2680.3,2680.2,3.73106]
[1739444957750,0.0462721,2680.3,2680.2,4.477279]
[1739444958151,5.28,2680.4,2680.2,4.477279]
[1739444958399,5.28,2680.4,2680.3,3.73092]
[1739444961172,5.28,2680.4,2680.2,4.477279]
[1739444961709,0.0433643,2680.3,2680.2,4.477279]
[1739444961914,0.0433643,2680.3,2680.2,0.746219]
[1739444962222,0.8084643,2680.3,2680.1,3.73117]
[1739444964240,0.8084643,2680.3,2679.8,3.72857078]
[1739444964401,0.8084643,2680.3,2680.1,3.73113]
[1739444964610,0.8084643,2680.3,2680.1,7.46226]
[1739444964765,0.8084643,2680.3,2680.1,3.73113]
[1739444965315,0.8084643,2680.3,2679.9,3.73139]
[1739444965464,0.8084643,2680.3,2680.0,4.47730608]
[1739444965665,0.8084643,2680.3,2680.1,3.73119]
[1739444966519,0.8084643,2680.3,2680.1,3.73113]
[1739444967366,0.8084643,2680.3,2680.0,4.47732608]
[1739444967584,0.8084643,2680.3,2680.0,4.47726608]
[1739444967863,0.8084643,2680.3,2680.0,4.47725608]
[1739444968098,0.8084643,2680.3,2680.0,8.20849608]
[1739444968317,0.8084643,2680.3,2680.1,3.7312]
[1739444968513,0.8084643,2680.3,2680.0,4.47723608]
[1739444969067,0.8084643,2680.3,2680.1,3.73119]
[1739444969326,0.8084643,2680.3,2680.0,4.47723608]
[1739444970120,4.5394543,2680.3,2679.9,3.73141]
[1739444970922,0.8084643,2680.3,2679.9,3.73141]
[1739444971069,0.8084643,2680.3,2680.0,3.73126]
[1739444971269,0.8084643,2680.3,2680.0,3.73125]
[1739444971730,0.8084643,2680.3,2680.1,3.7311]
[1739444972070,0.8084643,2680.3,2680.1,3.73113]
[1739444972390,0.8084643,2680.3,2680.1,7.46226]
[1739444972569,0.0433643,2680.3,2680.2,3.73106]
[1739444974359,5.28,2680.4,2680.2,3.73106]
[1739444974481,6.067,2680.7,2680.4,3.73077]
[1739444975095,6.067,2680.7,2680.4,3.73066]
[1739444975433,6.067,2680.7,2680.5,3.73062]
[1739444975994,6.067,2680.7,2680.4,3.73077]
[1739444976370,6.067,2680.7,2680.3,3.73086]
[1739444976576,0.04181317,2680.6,2680.4,3.73078]
[1739444976776,0.04181317,2680.6,2680.3,3.73086]
[1739444976984,0.04181317,2680.6,2680.5,3.73064]
[1739444978045,0.04181317,2680.6,2680.4,3.73075]
[1739444978252,0.04181317,2680.6,2680.2,3.73095]
[1739444978404,0.04181317,2680.6,2680.1,1.010826]
[1739444978743,6.067,2680.7,2680.4,3.73068]
[1739444978946,0.04185828,2680.5,2680.4,3.73068]
[1739444979083,0.7668,2680.6,2680.2,3.73095]
[1739444979437,0.80865828,2680.5,2680.2,3.73105]
[1739444979605,0.80865828,2680.5,2679.8,4.01386167]
[1739444979805,0.80865828,2680.5,2680.3,3.73079]
[1739444980126,0.80865828,2680.5,2680.4,3.73078]
[1739444980332,0.04185828,2680.5,2680.4,3.73078]
[1739444980530,6.0468,2680.7,2680.4,3.73078]
[1739444980687,0.04196658,2680.5,2680.4,3.73078]
[1739444980888,6.0468,2680.7,2680.4,3.73078]
[1739444981088,0.04196658,2680.5,2680.4,3.73078]
[1739444981386,6.0468,2680.7,2680.4,3.73078]
[1739444981616,0.04190341,2680.5,2680.4,3.73078]
[1739444981802,6.0468,2680.7,2680.4,3.73078]
[1739444982343,0.04190341,2680.6,2680.3,3.73092]
[1739444984093,3.77242341,2680.6,2680.2,3.73095]
[1739444985005,0.04190341,2680.6,2680.3,3.7308]
[1739444985334,0.04190341,2680.6,2680.4,3.73077]
[1739444985514,0.04190341,2680.6,2680.5,3.73064]
[1739444985700,0.04190341,2680.6,2680.4,3.73077]
[1739444985904,0.04190341,2680.6,2680.3,3.73091]
[1739444986837,0.04190341,2680.6,2680.0,2.86986213]
[1739444987007,0.04190341,2680.6,2680.1,0.55158621]
[1739444987194,0.04190341,2680.6,2680.4,3.73069]
[1739444987838,0.04190341,2680.6,2680.5,3.73064]
[1739444989545,6.3572,2680.9,2680.5,3.73064]
[1739444989755,6.3572,2680.9,2680.6,3.73044]
[1739444990445,6.3572,2680.9,2680.5,3.73063]
[1739444990747,6.3572,2680.9,2680.6,3.73049]
[1739444991647,0.04145286,2680.8,2680.6,3.73049]
[1739444994760,0.04145286,2680.8,2680.7,3.73036]
[1739444994955,1.0452,2681.1,2680.8,3.73022]
[1739444995129,6.3252,2681.1,2680.8,3.73022]
[1739444995825,6.3252,2681.1,2680.7,3.73036]
[1739444996352,10.05501,2681.1,2680.7,3.73036]
[1739444996762,6.3252,2681.1,2680.7,3.73036]
[1739444997974,10.05502,2681.1,2680.7,3.73036]
[1739444998579,13.78493,2681.1,2680.6,3.7305]
[1739444998753,10.05502,2681.1,2680.6,3.7305]
[1739444998955,10.05502,2681.1,2680.7,3.73032]
[1739445000491,6.3252,2681.1,2680.5,3.99517]
[1739445000793,3.73001,2681.0,2680.6,0.399517]
[1739445001093,4.54345,2680.9,2680.5,3.73062]
[1739445001733,4.54345,2680.9,2680.3,4.47644551]
[1739445001996,5.28,2681.1,2680.2,1.65514435]
[1739445002166,1.0811,2680.9,2680.2,1.65514435]
[1739445002369,3.73029,2680.8,2680.3,7.46169]
[1739445002567,3.73029,2680.8,2680.3,3.73083]
[1739445002778,0.7708,2680.6,2680.3,3.73083]
[1739445002993,0.7708,2680.6,2680.2,1.39054435]
[1739445003210,0.7708,2680.6,2680.2,5.76201477]
[1739445003406,4.50131,2680.6,2680.2,4.37147042]
[1739445004100,4.50131,2680.6,2680.2,0.64043042]
[1739445004814,4.50131,2680.6,2680.2,4.37146042]
[1739445006103,0.7758,2680.5,2680.0,3.73133]
[1739445006254,0.7758,2680.2,2679.3,0.2646]
[1739445006454,0.7758,2680.0,2679.7,3.73168]
[1739445006755,0.7758,2680.0,2679.9,3.73148]
[1739445006985,6.0558,2680.2,2679.9,3.73148]
[1739445007404,0.828,2680.1,2679.6,3.73182]
[1739445007705,5.28,2680.2,2680.0,3.73134]
[1739445008011,6.108,2680.3,2680.0,3.73134]
[1739445008425,6.108,2680.3,2679.9,3.73148]
[1739445009168,3.73108,2680.2,2679.7,3.73166]
[1739445009317,6.108,2680.3,2679.8,3.73152]
[1739445010066,6.108,2680.3,2679.7,4.72522506]
[1739445010229,3.73113,2680.2,2679.7,4.72522506]
[1739445010432,3.73129,2680.1,2679.7,0.99356506]
[1739445010666,0.7931,2679.9,2679.3,4.74030774]
[1739445010813,0.7931,2679.9,2678.9,3.73281]
[1739445010814,0.7931,2679.7,2679.1,3.73253]
[1739445011315,0.7931,2679.7,2679.3,3.73223]
[1739445011931,0.7931,2679.7,2679.3,7.46446]
[1739445012147,0.7931,2679.7,2679.3,3.73223]
[1739445012459,3.73193,2679.6,2679.1,3.7325]
[1739445012769,0.7931,2679.7,2679.1,3.7325]
[1739445013079,0.7931,2679.7,2679.4,3.73207]
[1739445013267,0.7931,2679.7,2679.6,3.7319]
[1739445013651,0.7931,2679.7,2679.4,3.73206]
[1739445013945,0.27,2679.8,2679.7,3.73176]
[1739445014351,0.27,2679.8,2679.5,3.7319]
[1739445014550,0.27,2679.8,2679.5,4.478297]
[1739445015973,0.27,2679.8,2679.6,3.73189]
[1739445016173,0.27,2679.8,2679.7,3.73176]
[1739445016393,0.27,2679.8,2679.6,3.73189]
[1739445016887,0.27,2679.8,2679.6,3.73182]
[1739445018444,0.27,2679.8,2679.7,3.73176]
[1739445018635,0.27,2679.8,2679.6,4.26612258]
[1739445020386,0.27,2679.8,2679.5,3.732]
[1739445021263,0.27,2679.8,2679.4,3.73216]
[1739445021631,0.03905981,2679.7,2679.4,3.73216]
[1739445022062,0.27,2679.8,2679.4,7.46426]
[1739445022246,0.03905981,2679.6,2679.4,8.82398074]
[1739445022445,0.27,2679.8,2679.4,8.82398074]
[1739445022659,0.03905981,2679.5,2679.4,8.82398074]
[1739445022860,0.27,2679.8,2679.4,8.82398074]
[1739445023062,0.03905981,2679.5,2679.4,8.82398074]
[1739445023321,0.27,2679.8,2679.4,8.82391074]
[1739445023575,0.27,2679.8,2679.4,5.09181074]
[1739445023780,0.03766482,2679.7,2679.4,5.09181074]
[1739445023933,0.27,2679.8,2679.4,5.09181074]
[1739445024132,0.03766482,2679.6,2679.4,5.09181074]
[1739445024333,0.27,2679.8,2679.4,5.09181074]
[1739445024671,0.81876482,2679.5,2679.3,3.73229]
[1739445024878,0.7811,2679.5,2679.3,3.73229]
[1739445025073,0.03766482,2679.4,2679.3,3.73229]
[1739445025498,0.03766482,2679.4,2679.3,3.76960895]
[1739445025797,0.27,2679.8,2679.7,3.73176]
[1739445025932,0.27,2680.3,2680.0,3.73122]
[1739445026128,0.7811,2680.4,2680.2,3.73106]
[1739445026331,0.7811,2680.4,2680.1,3.73117]
[1739445026877,0.7811,2680.4,2679.9,2.86834744]
[1739445027263,0.7811,2680.4,2680.3,3.73092]
[1739445027638,0.27,2680.5,2680.3,3.7308]
[1739445027839,0.27,2680.5,2680.4,3.73078]
[1739445028550,2.01985875,2680.7,2680.5,3.73053]
[1739445029284,2.01985875,2680.7,2680.6,3.7305]
[1739445029452,2.01985875,2680.7,2680.5,3.73053]
[1739445029655,2.01985875,2680.7,2680.3,7.46171]
[1739445029867,2.01985875,2680.7,2680.3,3.73084]
[1739445030190,2.01985875,2680.7,2680.6,3.7305]
[1739445031376,2.01985875,2680.7,2680.5,7.46119]
[1739445031578,2.01985875,2680.7,2680.5,3.73056]
[1739445031760,2.01985875,2680.7,2680.5,7.46112]
[1739445032396,2.01985875,2680.7,2680.5,3.73056]
[1739445032590,2.01985875,2680.7,2680.5,7.46113]
[1739445032801,2.01985875,2680.7,2680.5,3.73056]